fUSD/lending_fUSD_20241123
["ID","MTS","AMOUNT","RATE_DAILY","PERIOD"]
[343153769,1732384261999,-1089.69,0.00055863,120]
[343153770,1732384262008,-1089.69,0.00055863,120]
[343153771,1732384262018,-871.45,0.00055863,120]
[343153772,1732384262027,-871.45,0.00055863,120]
[343153773,1732384262037,-871.45,0.00055863,120]
[343153774,1732384262047,-672.03,0.00055863,120]
[343153775,1732384262056,-672.03,0.00055863,120]
[343153776,1732384262066,-672.03,0.00055863,120]
[343153777,1732384262077,-672.03,0.00055863,120]
[343153778,1732384262087,-413.43,0.00055863,120]
[343153779,1732384262096,-975.79,0.00055863,120]
[343153780,1732384262105,-975.79,0.00055863,120]
[343153781,1732384262115,-975.79,0.00055863,120]
[343153782,1732384262125,-975.79,0.00055863,120]
[343153783,1732384262135,-500.0,0.00055863,120]
[343153784,1732384262145,-500.0,0.00055863,120]
[343153785,1732384262154,-500.0,0.00055863,120]
[343153786,1732384262164,-500.0,0.00055863,120]
[343153787,1732384262272,-500.0,0.00055863,120]
[343153788,1732384262282,-500.0,0.00055863,120]
[343153789,1732384262292,-500.0,0.00055863,120]
[343153790,1732384262301,-400.25,0.00055863,120]
[343153791,1732384262315,-1036.87,0.00055863,120]
[343153792,1732384262326,-1036.87,0.00055863,120]
[343153793,1732384262336,-1036.87,0.00055863,120]
[343153794,1732384262347,-1036.87,0.00055863,120]
[343153795,1732384262356,-500.0,0.00055863,120]
[343153796,1732384262366,-500.0,0.00055863,120]
[343153797,1732384262375,-500.0,0.00055863,120]
[343153798,1732384262386,-500.0,0.00055863,120]
[343153799,1732384262395,-500.0,0.00055863,120]
[343153800,1732384262405,-500.0,0.00055863,120]
[343153801,1732384262414,-500.0,0.00055863,120]
[343153802,1732384262423,-500.0,0.00055863,120]
[343153803,1732384262434,-500.0,0.00055863,120]
[343153804,1732384262443,-1136.73,0.00055863,120]
[343153805,1732384262453,-1136.73,0.00055863,120]
[343153806,1732384262463,-1136.73,0.00055863,120]
[343153807,1732384262472,-1136.73,0.00055863,120]
[343153808,1732384262482,-915.42,0.00055863,120]
[343153809,1732384262491,-915.42,0.00055863,120]
[343153810,1732384262501,-915.42,0.00055863,120]
[343153811,1732384262511,-915.42,0.00055863,120]
[343153812,1732384262520,-299.70279353,0.00055863,120]
[343153813,1732384262530,-1109.07,0.00055863,30]
[343153814,1732384262539,-1109.07,0.00055863,30]
[343153815,1732384262548,-1109.07,0.00055863,30]
[343153816,1732384262558,-1109.07,0.00055863,30]
[343153817,1732384262570,-902.6,0.00055863,120]
[343153818,1732384262580,-902.6,0.00055863,120]
[343153819,1732384262590,-902.6,0.00055863,120]
[343153820,1732384262599,-902.6,0.00055863,120]
[343153821,1732384262613,-500.0,0.00055863,120]
[343153822,1732384262624,-500.0,0.00055863,120]
[343153823,1732384262634,-500.0,0.00055863,120]
[343153824,1732384262643,-500.0,0.00055863,120]
[343153825,1732384262653,-405.41479951,0.00055863,120]
[343153826,1732384262663,-500.0,0.00055863,120]
[343153827,1732384262673,-303.7,0.00055863,120]
[343153828,1732384262683,-1150.26,0.00055863,120]
[343153829,1732384262695,-1150.26,0.00055863,120]
[343153830,1732384262707,-1150.26,0.00055863,120]
[343153831,1732384262716,-886.75,0.00055863,120]
[343153832,1732384262726,-886.75,0.00055863,120]
[343153833,1732384262735,-886.75,0.00055863,120]
[343153834,1732384262745,-886.75,0.00055863,120]
[343153835,1732384262755,-500.0,0.00055863,120]
[343153836,1732384262764,-500.0,0.00055863,120]
[343153837,1732384262774,-304.48,0.00055863,120]
[343153838,1732384262784,-645.25,0.00055863,120]
[343153839,1732384262794,-645.25,0.00055863,120]
[343153840,1732384262804,-645.25,0.00055863,120]
[343153841,1732384262814,-500.0,0.00055863,120]
[343153842,1732384262829,-500.0,0.00055863,120]
[343153843,1732384262839,-500.0,0.00055863,120]
[343153844,1732384262848,-376.11256854,0.00055863,120]
[343153845,1732384262858,-500.0,0.00055863,120]
[343153846,1732384262868,-500.0,0.00055863,120]
[343153847,1732384262878,-500.0,0.00055863,120]
[343153848,1732384262888,-500.0,0.00055863,120]
[343153849,1732384262898,-500.0,0.00055863,120]
[343153850,1732384262907,-500.0,0.00055863,120]
[343153851,1732384262917,-1108.26,0.00055863,120]
[343153852,1732384262927,-500.0,0.00055863,120]
[343153853,1732384262937,-1108.26,0.00055863,120]
[343153854,1732384262946,-541.58675694,0.00055863,120]
[343153855,1732384262955,-1108.26,0.00055863,120]
[343153856,1732384262964,-500.0,0.00055863,120]
[343153857,1732384262974,-500.0,0.00055863,120]
[343153858,1732384262983,-276.59961766,0.00055863,120]
[343153859,1732384262993,-821.65,0.00055863,120]
[343153860,1732384263002,-821.65,0.00055863,120]
[343153861,1732384263012,-821.65,0.00055863,120]
[343153862,1732384263022,-821.65,0.00055863,120]
[343153863,1732384263032,-500.0,0.00055863,120]
[343153864,1732384263042,-500.0,0.00055863,120]
[343153865,1732384263052,-500.0,0.00055863,120]
[343153866,1732384263062,-500.0,0.00055863,120]
[343153867,1732384263075,-500.0,0.00055863,120]
[343153868,1732384263085,-830.22,0.00055863,120]
[343153869,1732384263095,-830.22,0.00055863,120]
[343153870,1732384263105,-830.22,0.00055863,120]
[343153871,1732384263115,-830.22,0.00055863,120]
[343153872,1732384263126,-724.25,0.00055863,120]
[343153873,1732384263137,-724.25,0.00055863,120]
[343153874,1732384263147,-724.25,0.00055863,120]
[343153875,1732384263158,-500.0,0.00055863,120]
[343153876,1732384263168,-500.0,0.00055863,120]
[343153877,1732384263178,-500.0,0.00055863,120]
[343153878,1732384263187,-500.0,0.00055863,120]
[343153879,1732384263197,-500.0,0.00055863,120]
[343153880,1732384263207,-500.0,0.00055863,120]
[343153881,1732384263218,-500.0,0.00055863,120]
[343153882,1732384263227,-676.9,0.00055863,120]
[343153883,1732384263237,-676.9,0.00055863,120]
[343153884,1732384263247,-676.9,0.00055863,120]
[343153885,1732384263256,-830673.39485194,0.00055863,2]
[343153886,1732384263266,-150.0,0.00055867,14]
[343153887,1732384263277,-150.0,0.00055874,30]
[343153888,1732384263287,-150.0,0.00055878,120]
[343153889,1732384263297,-150.5,0.00055882,7]
[343153890,1732384263308,-7258.83100627,0.00055886,2]
[343153891,1732384263325,-705.21,0.00055889,120]
[343153892,1732384263336,-500.0,0.00055889,120]
[343153893,1732384263346,-283.3,0.00055889,120]
[343153894,1732384263357,-500.0,0.00055889,120]
[343153895,1732384263368,-500.0,0.00055889,120]
[343153896,1732384263378,-1150.26,0.00055889,120]
[343153897,1732384263388,-1150.26,0.00055889,120]
[343153898,1732384263398,-645.25,0.00055889,120]
[343153899,1732384263408,-1108.26,0.00055889,120]
[343153900,1732384263417,-724.25,0.00055889,120]
[343153901,1732384263427,-500.0,0.00055889,120]
[343153902,1732384263437,-676.9,0.00055889,120]
[343153903,1732384263447,-12431.6494473,0.00055889,2]
[343153904,1732384263457,-165.96632871,0.0005589,34]
[343153905,1732384263467,-967.0,0.0005589,25]
[343153906,1732384263478,-223.99089721,0.0005589,120]
[343153907,1732384263489,-490.36584038,0.0005589,15]
[343153908,1732384263499,-215.8551088,0.0005589,15]
[343153909,1732384263510,-170.43948603,0.0005589,2]
[343153910,1732384263521,-2944.47740037,0.0005589,2]
[343153911,1732384263531,-2407.40488923,0.0005589,30]
[343153912,1732384263541,-1599.55647231,0.0005589,2]
[343153913,1732384263551,-206.37457126,0.0005589,11]
[343153914,1732384263561,-179.82352138,0.0005589,28]
[343153915,1732384263573,-315.17682467,0.0005589,2]
[343153916,1732384263583,-243.99803397,0.0005589,27]
[343153917,1732384263594,-7260.28793118,0.0005589,120]
[343153918,1732384263603,-7260.28793118,0.0005589,120]
[343153919,1732384263614,-7260.28793118,0.0005589,120]
[343153920,1732384263624,-7260.28793118,0.0005589,120]
[343153921,1732384263634,-7260.28793118,0.0005589,120]
[343153922,1732384263643,-7260.28793118,0.0005589,120]
[343153923,1732384263653,-7260.28793118,0.0005589,120]
[343153924,1732384263662,-7260.28793118,0.0005589,120]
[343153925,1732384263673,-7260.28793118,0.0005589,120]
[343153926,1732384263683,-7260.28793118,0.0005589,120]
[343153927,1732384263694,-7260.28793118,0.0005589,120]
[343153928,1732384263704,-7260.28793118,0.0005589,120]
[343153929,1732384263715,-7260.28793118,0.0005589,120]
[343153930,1732384263725,-7260.28793118,0.0005589,120]
[343153931,1732384263735,-7260.28793118,0.0005589,120]
[343153932,1732384263745,-7260.28793118,0.0005589,120]
[343153933,1732384263755,-7260.28793118,0.0005589,120]
[343153934,1732384263765,-7260.28793118,0.0005589,120]
[343153935,1732384263775,-7260.28793118,0.0005589,120]
[343153936,1732384263785,-7260.28,0.0005589,120]
[343153937,1732384263794,-10890.43189677,0.0005589,120]
[343153938,1732384263804,-10890.43189677,0.0005589,120]
[343153939,1732384263815,-10890.43189677,0.0005589,120]
[343153940,1732384263827,-10890.43189677,0.0005589,120]
[343153941,1732384263837,-10890.43189677,0.0005589,120]
[343153942,1732384263847,-10890.43189677,0.0005589,120]
[343153943,1732384263858,-10890.43189677,0.0005589,120]
[343153944,1732384263868,-10890.43189677,0.0005589,120]
[343153945,1732384263878,-10890.43189677,0.0005589,120]
[343153946,1732384263887,-10890.43189677,0.0005589,120]
[343153947,1732384263897,-10890.43189677,0.0005589,120]
[343153948,1732384263907,-10890.43189677,0.0005589,120]
[343153949,1732384263917,-10890.43189677,0.0005589,120]
[343153950,1732384263927,-10890.43189677,0.0005589,120]
[343153951,1732384263936,-10890.43189677,0.0005589,120]
[343153952,1732384263946,-10890.43189677,0.0005589,120]
[343153953,1732384263956,-10890.43189677,0.0005589,120]
[343153954,1732384263965,-10890.43189677,0.0005589,120]
[343153955,1732384263975,-10890.43189677,0.0005589,120]
[343153956,1732384263984,-10890.43,0.0005589,120]
[343153957,1732384263994,-180.25405287,0.0005589,120]
[343153958,1732384264004,-180.25,0.0005589,120]
[343153959,1732384264014,-180.25405287,0.0005589,120]
[343153960,1732384264024,-180.25405287,0.0005589,120]
[343153961,1732384264033,-180.25,0.0005589,120]
[343153962,1732384264043,-150.5,0.00055892,7]
[343153963,1732384264052,-502.8272821,0.00055895,60]
[343153964,1732384264166,-5000.0,0.000559,120]
[343153965,1732384264176,-2600.45648566,0.000559,5]
[343153966,1732384264186,-486.0,0.000559,3]
[343153967,1732384264196,-150.0,0.000559,120]
[343153968,1732384264206,-5800.0,0.000559,14]
[343153969,1732384264215,-934.1936,0.000559,120]
[343153970,1732384264225,-150.0,0.000559,14]
[343153971,1732384264235,-4000.0,0.000559,120]
[343153972,1732384264245,-158.0,0.000559,72]
[343153973,1732384264254,-150.5,0.00055902,7]
[343153974,1732384264264,-150.0,0.00055903,14]
[343153975,1732384264274,-500.0,0.00055911,120]
[343153976,1732384264283,-500.0,0.00055911,120]
[343153977,1732384264292,-500.0,0.00055911,120]
[343153978,1732384264302,-792.92,0.00055911,120]
[343153979,1732384264316,-792.92,0.00055911,120]
[343153980,1732384264329,-792.92,0.00055911,120]
[343153981,1732384264339,-884.33,0.00055911,120]
[343153982,1732384264351,-884.33,0.00055911,120]
[343153983,1732384264361,-884.33,0.00055911,120]
[343153984,1732384264372,-935.79,0.00055911,120]
[343153985,1732384264382,-935.79,0.00055911,120]
[343153986,1732384264393,-935.79,0.00055911,120]
[343153987,1732384264404,-1493.08,0.00055911,120]
[343153988,1732384264414,-1493.08,0.00055911,120]
[343153989,1732384264424,-1493.08,0.00055911,120]
[343153990,1732384264433,-500.0,0.00055911,120]
[343153991,1732384264444,-500.0,0.00055911,120]
[343153992,1732384264453,-530.65062164,0.00055911,120]
[343153993,1732384264463,-500.0,0.00055911,120]
[343153994,1732384264474,-500.0,0.00055911,120]
[343153995,1732384264483,-152.77108137,0.00055911,120]
[343153996,1732384264494,-500.0,0.00055911,120]
[343153997,1732384264504,-500.0,0.00055911,120]
[343153998,1732384264514,-500.0,0.00055911,120]
[343153999,1732384264524,-993.37,0.00055911,54]
[343154000,1732384264533,-993.37,0.00055911,54]
[343154001,1732384264543,-993.37,0.00055911,54]
[343154002,1732384264553,-559.42,0.00055911,120]
[343154003,1732384264562,-559.42,0.00055911,120]
[343154004,1732384264574,-559.42,0.00055911,120]
[343154005,1732384264584,-705.21,0.00055911,120]
[343154006,1732384264594,-705.21,0.00055911,120]
[343154007,1732384264604,-705.21,0.00055911,120]
[343154008,1732384264614,-365.75001619,0.00055911,120]
[343154009,1732384264624,-1348.31,0.00055911,120]
[343154010,1732384264634,-1348.31,0.00055911,120]
[343154011,1732384264644,-1348.31,0.00055911,120]
[343154012,1732384264654,-500.0,0.00055911,120]
[343154013,1732384264664,-500.0,0.00055911,120]
[343154014,1732384264673,-500.0,0.00055911,120]
[343154015,1732384264682,-500.26482364,0.00055911,120]
[343154016,1732384264691,-1032.3,0.00055911,120]
[343154017,1732384264702,-1032.3,0.00055911,120]
[343154018,1732384264711,-1032.3,0.00055911,120]
[343154019,1732384264721,-500.0,0.00055911,120]
[343154020,1732384264731,-512.8,0.00055911,120]
[343154021,1732384264740,-1089.69,0.00055911,120]
[343154022,1732384264750,-1089.69,0.00055911,120]
[343154023,1732384264759,-1089.69,0.00055911,120]
[343154024,1732384264769,-871.45,0.00055911,120]
[343154025,1732384264779,-871.45,0.00055911,120]
[343154026,1732384264789,-871.45,0.00055911,120]
[343154027,1732384264799,-871.45,0.00055911,120]
[343154028,1732384264809,-672.03,0.00055911,120]
[343154029,1732384264822,-672.03,0.00055911,120]
[343154030,1732384264832,-672.03,0.00055911,120]
[343154031,1732384264842,-672.03,0.00055911,120]
[343154032,1732384264852,-975.79,0.00055911,120]
[343154033,1732384264862,-975.79,0.00055911,120]
[343154034,1732384264872,-975.79,0.00055911,120]
[343154035,1732384264881,-500.0,0.00055911,120]
[343154036,1732384264891,-395.85,0.00055911,120]
[343154037,1732384264900,-1036.87,0.00055911,120]
[343154038,1732384264910,-1036.87,0.00055911,120]
[343154039,1732384264919,-1036.87,0.00055911,120]
[343154040,1732384264928,-500.0,0.00055911,120]
[343154041,1732384264937,-500.0,0.00055911,120]
[343154042,1732384264946,-500.0,0.00055911,120]
[343154043,1732384264955,-500.0,0.00055911,120]
[343154044,1732384264965,-1136.73,0.00055911,120]
[343154045,1732384264975,-1136.73,0.00055911,120]
[343154046,1732384264984,-1136.73,0.00055911,120]
[343154047,1732384264993,-915.42,0.00055911,120]
[343154048,1732384265003,-915.42,0.00055911,120]
[343154049,1732384265012,-915.42,0.00055911,120]
[343154050,1732384265022,-1109.07,0.00055911,30]
[343154051,1732384265031,-1109.07,0.00055911,30]
[343154052,1732384265041,-1109.07,0.00055911,30]
[343154053,1732384265050,-902.6,0.00055911,120]
[343154054,1732384265060,-902.6,0.00055911,120]
[343154055,1732384265071,-902.6,0.00055911,120]
[343154056,1732384265080,-902.6,0.00055911,120]
[343154057,1732384265090,-267.45,0.00055911,120]
[343154058,1732384265099,-1150.26,0.00055911,120]
[343154059,1732384265109,-1150.26,0.00055911,120]
[343154060,1732384265119,-1150.26,0.00055911,120]
[343154061,1732384265128,-1150.26,0.00055911,120]
[343154062,1732384265137,-1150.26,0.00055911,120]
[343154063,1732384265151,-1150.26,0.00055911,120]
[343154064,1732384265163,-1150.26,0.00055911,120]
[343154065,1732384265172,-1150.28,0.00055911,120]
[343154066,1732384265181,-886.75,0.00055911,120]
[343154067,1732384265191,-886.75,0.00055911,120]
[343154068,1732384265200,-886.75,0.00055911,120]
[343154069,1732384265209,-645.25,0.00055911,120]
[343154070,1732384265219,-645.25,0.00055911,120]
[343154071,1732384265228,-645.25,0.00055911,120]
[343154072,1732384265238,-500.0,0.00055911,120]
[343154073,1732384265248,-179.92,0.00055911,120]
[343154074,1732384265257,-1108.26,0.00055911,120]
[343154075,1732384265267,-1108.26,0.00055911,120]
[343154076,1732384265277,-1108.26,0.00055911,120]
[343154077,1732384265286,-821.65,0.00055911,120]
[343154078,1732384265296,-821.65,0.00055911,120]
[343154079,1732384265306,-821.65,0.00055911,120]
[343154080,1732384265317,-206.14,0.00055911,120]
[343154081,1732384265329,-830.22,0.00055911,120]
[343154082,1732384265339,-830.22,0.00055911,120]
[343154083,1732384265349,-830.22,0.00055911,120]
[343154084,1732384265359,-724.25,0.00055911,120]
[343154085,1732384265370,-724.25,0.00055911,120]
[343154086,1732384265381,-724.25,0.00055911,120]
[343154087,1732384265392,-500.0,0.00055911,120]
[343154088,1732384265401,-634.01597152,0.00055911,120]
[343154089,1732384265412,-328.3,0.00055911,120]
[343154090,1732384265422,-676.9,0.00055911,120]
[343154091,1732384265431,-676.9,0.00055911,120]
[343154092,1732384265441,-676.9,0.00055911,120]
[343154093,1732384265451,-9182.37019107,0.00055912,30]
[343154094,1732384265461,-830673.39485194,0.00055912,2]
[343154095,1732384265472,-150.0,0.00055913,14]
[343154096,1732384265481,-150.0,0.00055916,14]
[343154097,1732384265492,-292.89937195,0.00055918,120]
[343154098,1732384265502,-3104.31691022,0.00055919,2]
[343154099,1732384265512,-500.0,0.00055921,120]
[343154100,1732384265521,-792.92,0.00055921,120]
[343154101,1732384265531,-884.33,0.00055921,120]
[343154102,1732384265541,-935.79,0.00055921,120]
[343154103,1732384265551,-1493.08,0.00055921,120]
[343154104,1732384265561,-500.0,0.00055921,120]
[343154105,1732384265572,-993.37,0.00055921,54]
[343154106,1732384265582,-559.42,0.00055921,120]
[343154107,1732384265591,-705.21,0.00055921,120]
[343154108,1732384265600,-1348.31,0.00055921,120]
[343154109,1732384265610,-1032.3,0.00055921,120]
[343154110,1732384265620,-1089.69,0.00055921,120]
[343154111,1732384265629,-975.79,0.00055921,120]
[343154112,1732384265638,-1036.87,0.00055921,120]
[343154113,1732384265647,-1136.73,0.00055921,120]
[343154114,1732384265656,-915.42,0.00055921,120]
[343154115,1732384265666,-1109.07,0.00055921,30]
[343154116,1732384265675,-886.75,0.00055921,120]
[343154117,1732384265684,-645.25,0.00055921,120]
[343154118,1732384265693,-1108.26,0.00055921,120]
[343154119,1732384265703,-821.65,0.00055921,120]
[343154120,1732384265712,-830.22,0.00055921,120]
[343154121,1732384265722,-724.25,0.00055921,120]
[343154122,1732384265731,-676.9,0.00055921,120]
[343154123,1732384265741,-94321.41263894,0.00055922,2]
[343154124,1732384265751,-871.45,0.00055923,120]
[343154125,1732384265760,-48515.53412727,0.00055924,2]
[343154126,1732384265770,-150.0,0.00055925,14]
[343154127,1732384265879,-150.0,0.00055926,14]
[343154128,1732384265888,-672.03,0.00055927,120]
[343154129,1732384265897,-500.0,0.00055927,120]
[343154130,1732384265907,-902.6,0.00055927,120]
[343154131,1732384265916,-22314.27971519,0.00055929,2]
[343154132,1732384265925,-22314.27971519,0.0005593,2]
[343154133,1732384265934,-500.0,0.00055931,60]
[343154134,1732384265944,-150.0,0.00055939,14]
[343154135,1732384265953,-621.96282147,0.0005594,2]
[343154136,1732384265963,-150.0,0.00055947,14]
[343154137,1732384265972,-3104.31691022,0.0005595,2]
[343154138,1732384265983,-1563.92564288,0.00055954,2]
[343154139,1732384265992,-4143.88314917,0.00055955,2]
[343154140,1732384266002,-150.0,0.00055957,14]
[343154141,1732384266013,-150.0,0.00055966,14]
[343154142,1732384266023,-4143.88314917,0.00055969,2]
[343154143,1732384266033,-261.04,0.0005597,7]
[343154144,1732384266043,-165.08,0.0005597,2]
[343154145,1732384266053,-150.5,0.0005598,7]
[343154146,1732384266063,-150.0,0.0005598,14]
[343154147,1732384266074,-500.0,0.00055981,120]
[343154148,1732384266084,-792.92,0.00055981,120]
[343154149,1732384266094,-884.33,0.00055981,120]
[343154150,1732384266104,-935.79,0.00055981,120]
[343154151,1732384266113,-1493.08,0.00055981,120]
[343154152,1732384266123,-500.0,0.00055981,120]
[343154153,1732384266132,-993.37,0.00055981,54]
[343154154,1732384266142,-559.42,0.00055981,120]
[343154155,1732384266151,-1348.31,0.00055981,120]
[343154156,1732384266161,-1032.3,0.00055981,120]
[343154157,1732384266170,-1089.69,0.00055981,120]
[343154158,1732384266180,-975.79,0.00055981,120]
[343154159,1732384266190,-1036.87,0.00055981,120]
[343154160,1732384266199,-1136.73,0.00055981,120]
[343154161,1732384266208,-915.42,0.00055981,120]
[343154162,1732384266218,-1109.07,0.00055981,30]
[343154163,1732384266227,-886.75,0.00055981,120]
[343154164,1732384266238,-821.65,0.00055981,120]
[343154165,1732384266247,-830.22,0.00055981,120]
[343154166,1732384266257,-48515.53412727,0.00055982,2]
[343154167,1732384266267,-150.0,0.00055986,14]
[343154168,1732384266276,-705.21,0.00055987,120]
[343154169,1732384266286,-705.21,0.00055987,120]
[343154170,1732384266296,-705.21,0.00055987,120]
[343154171,1732384266307,-705.21,0.00055987,120]
[343154172,1732384266320,-705.37266668,0.00055987,120]
[343154173,1732384266336,-645.25,0.00055987,120]
[343154174,1732384266346,-645.25,0.00055987,120]
[343154175,1732384266355,-645.25,0.00055987,120]
[343154176,1732384266365,-645.25,0.00055987,120]
[343154177,1732384266375,-645.26747707,0.00055987,120]
[343154178,1732384266384,-1108.26,0.00055987,120]
[343154179,1732384266397,-1108.26,0.00055987,120]
[343154180,1732384266407,-1108.26,0.00055987,120]
[343154181,1732384266416,-1108.26,0.00055987,120]
[343154182,1732384266426,-1108.45474001,0.00055987,120]
[343154183,1732384266437,-724.25,0.00055987,120]
[343154184,1732384266447,-724.25,0.00055987,120]
[343154185,1732384266458,-724.25,0.00055987,120]
[343154186,1732384266468,-724.25,0.00055987,120]
[343154187,1732384266478,-724.26,0.00055987,120]
[343154188,1732384266487,-676.9,0.00055987,120]
[343154189,1732384266497,-676.9,0.00055987,120]
[343154190,1732384266507,-676.9,0.00055987,120]
[343154191,1732384266516,-676.9,0.00055987,120]
[343154192,1732384266526,-677.02,0.00055987,120]
[343154193,1732384266536,-500.0,0.00055988,120]
[343154194,1732384266547,-792.92,0.00055988,120]
[343154195,1732384266557,-884.33,0.00055988,120]
[343154196,1732384266567,-935.79,0.00055988,120]
[343154197,1732384266580,-1493.08,0.00055988,120]
[343154198,1732384266591,-500.0,0.00055988,120]
[343154199,1732384266601,-993.37,0.00055988,54]
[343154200,1732384266611,-559.42,0.00055988,120]
[343154201,1732384266620,-1348.31,0.00055988,120]
[343154202,1732384266629,-1032.3,0.00055988,120]
[343154203,1732384266641,-1089.69,0.00055988,120]
[343154204,1732384266651,-871.45,0.00055988,120]
[343154205,1732384266661,-871.45,0.00055988,120]
[343154206,1732384266671,-672.03,0.00055988,120]
[343154207,1732384266681,-672.03,0.00055988,120]
[343154208,1732384266691,-672.03,0.00055988,120]
[343154209,1732384266701,-672.03,0.00055988,120]
[343154210,1732384266711,-672.09052903,0.00055988,120]
[343154211,1732384266721,-975.79,0.00055988,120]
[343154212,1732384266731,-1036.87,0.00055988,120]
[343154213,1732384266741,-500.0,0.00055988,120]
[343154214,1732384266750,-500.0,0.00055988,120]
[343154215,1732384266760,-500.0,0.00055988,120]
[343154216,1732384266769,-308.27,0.00055988,120]
[343154217,1732384266779,-1136.73,0.00055988,120]
[343154218,1732384266788,-915.42,0.00055988,120]
[343154219,1732384266799,-1109.07,0.00055988,30]
[343154220,1732384266809,-902.6,0.00055988,120]
[343154221,1732384266819,-902.6,0.00055988,120]
[343154222,1732384266830,-902.6,0.00055988,120]
[343154223,1732384266840,-902.6,0.00055988,120]
[343154224,1732384266850,-902.60494186,0.00055988,120]
[343154225,1732384266859,-886.75,0.00055988,120]
[343154226,1732384266869,-821.65,0.00055988,120]
[343154227,1732384266879,-830.22,0.00055988,120]
[343154228,1732384266889,-1395.96229919,0.00055989,120]
[343154229,1732384266898,-1477.88200041,0.00055989,120]
[343154230,1732384266908,-20332.07241152,0.00055989,120]
[343154231,1732384266918,-156717.75773513,0.00055989,7]
[343154232,1732384266927,-6959.77870462,0.00055989,120]
[343154233,1732384266937,-358.45090845,0.00055989,120]
[343154234,1732384266948,-792.92,0.00055989,120]
[343154235,1732384266958,-792.92,0.00055989,120]
[343154236,1732384266967,-792.92,0.00055989,120]
[343154237,1732384266977,-792.92,0.00055989,120]
[343154238,1732384266988,-793.11,0.00055989,120]
[343154239,1732384266999,-884.33,0.00055989,120]
[343154240,1732384267009,-884.33,0.00055989,120]
[343154241,1732384267019,-884.33,0.00055989,120]
[343154242,1732384267029,-884.33,0.00055989,120]
[343154243,1732384267039,-884.37093381,0.00055989,120]
[343154244,1732384267049,-935.79,0.00055989,120]
[343154245,1732384267059,-935.79,0.00055989,120]
[343154246,1732384267069,-935.79,0.00055989,120]
[343154247,1732384267080,-935.79,0.00055989,120]
[343154248,1732384267090,-935.86,0.00055989,120]
[343154249,1732384267098,-1493.08,0.00055989,120]
[343154250,1732384267108,-1493.08,0.00055989,120]
[343154251,1732384267117,-1493.08,0.00055989,120]
[343154252,1732384267127,-1493.08,0.00055989,120]
[343154253,1732384267136,-1493.28801019,0.00055989,120]
[343154254,1732384267146,-500.0,0.00055989,120]
[343154255,1732384267156,-500.0,0.00055989,120]
[343154256,1732384267166,-500.0,0.00055989,120]
[343154257,1732384267175,-240.61023649,0.00055989,120]
[343154258,1732384267185,-993.37,0.00055989,54]
[343154259,1732384267194,-993.37,0.00055989,54]
[343154260,1732384267204,-993.37,0.00055989,54]
[343154261,1732384267214,-993.37,0.00055989,54]
[343154262,1732384267224,-993.53489817,0.00055989,54]
[343154263,1732384267233,-559.42,0.00055989,120]
[343154264,1732384267243,-559.42,0.00055989,120]
[343154265,1732384267254,-559.42,0.00055989,120]
[343154266,1732384267264,-559.42,0.00055989,120]
[343154267,1732384267274,-559.45268615,0.00055989,120]
[343154268,1732384267284,-1348.31,0.00055989,120]